bitfinex/quotes_SOLUSD_20211001
["timestamp","ask_amount","ask_price","bid_price","bid_amount"]
[1633124193397,0.02088,161.55,161.37,26.9795512]
[1633124195300,6.99363,161.55,161.37,26.9795512]
[1633124202105,6.99363,161.55,161.38,6.97620221]
[1633124202305,6.99363,161.55,161.38,10.56504121]
[1633124202505,6.99363,161.55,161.38,6.97620221]
[1633124202706,6.99363,161.55,161.38,10.56510604]
[1633124202906,6.99363,161.55,161.38,37.54465724]
[1633124203106,6.99363,161.55,161.39,6.97617728]
[1633124203510,6.99363,161.55,161.39,10.56638553]
[1633124206918,6.99363,161.55,161.4,3.59027842]
[1633124207314,6.97275,161.55,161.4,3.59027842]
[1633124207516,6.97275,161.55,161.41,3.58999645]
[1633124207714,6.97275,161.55,161.41,6.97855849]
[1633124208014,6.97275,161.55,161.41,10.56853767]
[1633124212123,6.97275,161.55,161.42,3.5900499]
[1633124212923,6.97275,161.55,161.41,10.56864954]
[1633124214123,6.97275,161.55,161.42,3.59005443]
[1633124214326,6.97275,161.55,161.41,10.56873672]
[1633124216726,6.97275,161.55,161.41,6.97855849]
[1633124218327,6.97275,161.55,161.4,26.9795512]
[1633124225636,6.97275,161.55,161.37,3.5910196]
[1633124226035,6.97275,161.55,161.37,10.57065223]
[1633124226736,6.97275,161.55,161.38,6.97979692]
[1633124226935,6.97275,161.55,161.37,3.59092074]
[1633124227935,6.97275,161.55,161.37,10.57031649]
[1633124228136,6.97275,161.55,161.37,3.59092074]
[1633124229440,6.97275,161.55,161.37,10.5702926]
[1633124230041,6.97275,161.55,161.37,3.59092074]
[1633124230242,398.16832901,161.48,161.38,6.97926725]
[1633124230440,398.16832901,161.48,161.37,3.59092074]
[1633124236142,398.16832901,161.48,161.36,10.56988865]
[1633124236943,73.1124,161.47,161.36,10.56988865]
[1633124238849,73.1124,161.47,161.36,8.56988865]
[1633124239045,73.1124,161.47,161.36,4.97926844]
[1633124244048,73.1124,161.47,161.35,26.54621786]
[1633124244449,73.1124,161.47,161.32,457.22476266]
[1633124244649,73.1124,161.47,161.33,3.59151401]
[1633124245954,73.1124,161.47,161.32,3.59126746]
[1633124246154,73.1124,161.47,161.33,3.59137593]
[1633124246870,73.1124,161.47,161.32,28.76542065]
[1633124248778,73.1124,161.47,161.33,3.5912697]
[1633124249176,73.1124,161.47,161.32,28.76520746]
[1633124250978,73.1124,161.47,161.33,3.59103763]
[1633124251779,73.1124,161.47,161.33,30.28169994]
[1633124253081,73.1124,161.47,161.33,26.69066231]
[1633124258288,73.1124,161.47,161.33,30.28178586]
[1633124258486,73.1124,161.47,161.33,26.69066231]
[1633124259088,73.1124,161.47,161.33,30.2818354]
[1633124259289,73.1124,161.47,161.34,3.5909487]
[1633124259689,73.1124,161.47,161.35,26.69066231]
[1633124259891,73.1124,161.47,161.35,78.15266231]
[1633124260090,73.1124,161.47,161.35,81.73380965]
[1633124260289,73.1124,161.47,161.36,30.27359803]
[1633124260492,73.1124,161.47,161.36,81.73559803]
[1633124260690,73.1124,161.47,161.37,26.69066231]
[1633124262289,398.16832901,161.48,161.37,26.69066231]
[1633124262489,398.16832901,161.48,161.37,97.47166231]
[1633124262689,398.16832901,161.48,161.37,100.93400154]
[1633124262890,398.16832901,161.48,161.38,26.69066231]
[1633124263493,398.16832901,161.48,161.38,30.12520443]
[1633124263692,398.16832901,161.48,161.38,81.58720443]
[1633124265096,398.16832901,161.48,161.39,26.40177342]
[1633124265293,398.16832901,161.48,161.4,51.462]
[1633124265493,6.97275,161.55,161.4,51.462]
[1633124265694,6.97275,161.55,161.41,26.40177342]
[1633124265892,6.97275,161.55,161.42,51.462]
[1633124266098,75.1069,161.58,161.42,66.932]
[1633124266293,0.02088,161.63,161.42,66.932]
[1633124266494,75.9077,161.65,161.42,70.36240264]
[1633124267092,75.9077,161.65,161.42,66.95288]
[1633124267292,497.52013296,161.57,161.42,66.95288]
[1633124268898,497.52013296,161.57,161.42,51.48288]
[1633124269097,497.52013296,161.57,161.42,77.88465342]
[1633124269498,497.52013296,161.57,161.42,81.29302612]
[1633124269796,497.52013296,161.57,161.43,0.02088]
[1633124269998,79.5435,161.56,161.43,0.02088]
[1633124270199,79.5435,161.56,161.44,26.40177342]
[1633124270400,79.5435,161.56,161.45,51.48288]
[1633124270599,79.5435,161.56,161.46,0.02088]
[1633124271203,497.52013296,161.57,161.46,0.02088]
[1633124271800,497.52013296,161.57,161.46,26.42265342]
[1633124271999,3.58463945,161.75,161.47,51.462]
[1633124272202,466.68281715,161.63,161.47,51.462]
[1633124273599,466.68281715,161.63,161.48,0.02088]
[1633124273999,466.68281715,161.63,161.49,26.40177342]
[1633124274200,466.68281715,161.63,161.5,51.48288]
[1633124274401,0.02088,161.75,161.51,0.02088]
[1633124274600,6.99363,161.75,161.51,26.42265342]
[1633124274799,6.99363,161.75,161.52,77.88465342]
[1633124275201,6.99363,161.75,161.53,26.40177342]
[1633124275399,6.99363,161.75,161.54,51.462]
[1633124275900,6.99363,161.75,161.54,77.86377342]
[1633124276101,6.99363,161.75,161.55,73.2058]
[1633124276304,6.99363,161.75,161.56,51.462]
[1633124277502,6.99363,161.75,161.56,77.86377342]
[1633124278106,488.37480463,161.72,161.56,77.86377342]
[1633124281409,488.37480463,161.72,161.56,74.76741473]
[1633124281806,488.37480463,161.72,161.56,26.40177342]
[1633124282607,72.0081,161.71,161.56,26.40177342]
[1633124282808,488.37480463,161.72,161.57,26.00592177]
[1633124283207,488.37480463,161.72,161.57,52.40769519]
[1633124283508,488.37480463,161.72,161.57,26.40177342]
[1633124284309,6.99363,161.75,161.57,88.15177342]
[1633124289012,0.02088,161.75,161.57,88.15177342]
[1633124289215,0.02088,161.8,161.57,88.15177342]
[1633124289412,0.02088,161.8,161.57,106.15577342]
[1633124289812,0.02088,161.8,161.57,44.40577342]
[1633124290412,77.1126,161.83,161.57,106.15577342]
[1633124290615,0.02088,161.82,161.57,106.15577342]
[1633124291412,0.02088,161.82,161.57,44.40577342]
[1633124291613,0.02088,161.82,161.57,26.40177342]
[1633124299019,0.02088,161.82,161.56,24.34712342]
[1633124300021,0.02088,161.82,161.56,27.75366763]
[1633124300419,0.02088,161.82,161.57,24.34712342]
[1633124301021,0.02088,161.82,161.57,27.75365518]
[1633124301219,0.02088,161.82,161.57,24.34712342]
[1633124301419,0.02088,161.82,161.58,24.34712342]
[1633124302626,0.02088,161.82,161.58,24.36800342]
[1633124303026,0.02088,161.82,161.59,24.34712342]
[1633124303225,0.02088,161.82,161.6,78.2361]
[1633124303226,74.62718,161.82,161.6,78.2361]
[1633124303424,510.71090688,161.75,161.6,78.2361]
[1633124303627,510.71090688,161.75,161.59,24.34712342]
[1633124303824,510.71090688,161.75,161.6,24.34712342]
[1633124308732,510.71090688,161.75,161.6,27.72764015]
[1633124309132,510.71090688,161.75,161.6,24.34712342]
[1633124310533,77.2682,161.74,161.6,24.34712342]
[1633124311334,510.71090688,161.75,161.6,24.34712342]
[1633124315737,510.71090688,161.75,161.58,27.73929503]
[1633124319043,74.3615,161.74,161.58,27.73929503]
[1633124319443,74.3615,161.74,161.58,27.71841503]
[1633124319844,74.3615,161.74,161.59,3.36560896]
[1633124321549,510.71090688,161.75,161.59,3.36560896]
[1633124322160,77.8665,161.74,161.59,3.36560896]
[1633124322349,77.8665,161.74,161.58,27.73530091]
[1633124324354,510.71090688,161.75,161.58,27.73530091]
[1633124325855,72.6049,161.74,161.58,27.73530091]
[1633124328056,510.71090688,161.75,161.58,27.73530091]
[1633124328759,78.9016,161.74,161.59,7.01972205]
[1633124329158,78.9016,161.74,161.59,10.41978099]
[1633124329358,78.9016,161.74,161.59,7.01972205]
[1633124329958,78.9016,161.74,161.59,10.42189602]
[1633124331060,78.9016,161.74,161.59,7.01972205]
[1633124335763,78.9016,161.74,161.59,31.36684547]
[1633124335966,78.9016,161.74,161.59,24.34712342]
[1633124346889,78.9016,161.74,161.6,6.8858649]
[1633124347489,510.71090688,161.75,161.6,6.8858649]
[1633124348089,76.4477,161.74,161.6,6.8858649]
[1633124350690,510.71090688,161.75,161.6,6.8858649]
[1633124350890,510.71090688,161.75,161.6,10.22791122]
[1633124351293,510.71090688,161.75,161.6,6.8858649]
[1633124351492,510.71090688,161.75,161.6,10.22344874]
[1633124354596,77.2214,161.74,161.6,10.22344874]
[1633124355594,77.2214,161.74,161.6,6.8858649]
[1633124357795,510.71090688,161.75,161.6,6.8858649]
[1633124359298,510.71090688,161.75,161.6,31.23298832]
[1633124359499,510.71090688,161.75,161.6,24.34712342]
[1633124363610,79.3895,161.74,161.6,24.34712342]
[1633124365611,510.71090688,161.75,161.6,24.34712342]
[1633124369515,510.71090688,161.75,161.61,6.74765223]
[1633124369713,510.71090688,161.75,161.61,10.01323781]
[1633124370115,510.71090688,161.75,161.61,6.74765223]
[1633124370515,77.7393,161.74,161.61,6.74765223]
[1633124372114,510.71090688,161.75,161.61,6.74765223]
[1633124373516,72.9448,161.74,161.61,6.74765223]
[1633124373721,72.9448,161.74,161.61,10.01588566]
[1633124374117,510.71090688,161.75,161.61,6.74765223]
[1633124374719,510.71090688,161.75,161.61,10.01763057]
[1633124374918,77.0853,161.74,161.61,10.01763057]
[1633124375719,77.0853,161.74,161.61,6.74765223]
[1633124379127,77.0853,161.74,161.61,10.02423397]
[1633124385728,77.0853,161.74,161.62,3.37706998]
[1633124387129,77.0853,161.74,161.61,10.14575817]
[1633124388834,77.0853,161.74,161.61,6.74765223]
[1633124389028,77.0853,161.74,161.61,10.15701948]
[1633124389230,77.0853,161.74,161.61,6.74765223]
[1633124389431,77.0853,161.74,161.61,10.16395881]
[1633124393332,77.0853,161.74,161.61,6.74765223]
[1633124395235,77.0853,161.74,161.61,10.25418991]
[1633124397137,77.0853,161.74,161.61,6.74765223]
[1633124397535,77.0853,161.74,161.61,10.29256422]
[1633124399035,77.0853,161.74,161.61,6.74765223]
[1633124399636,77.0853,161.74,161.61,10.30084878]
[1633124399837,77.0853,161.74,161.61,6.74765223]
[1633124403743,77.0853,161.74,161.61,10.31007899]
[1633124403942,77.0853,161.74,161.61,6.74765223]
[1633124404643,77.0853,161.74,161.61,10.32388114]
[1633124404841,77.0853,161.74,161.61,10.27045029]
[1633124409646,77.0853,161.74,161.68,0.3180532]
[1633124414554,77.0853,161.74,161.62,3.57852184]
[1633124414951,77.0853,161.74,161.68,0.3180532]
[1633124419959,77.0853,161.74,161.62,3.57750038]
[1633124420159,77.0853,161.74,161.68,0.3180532]
[1633124425164,77.0853,161.74,161.62,3.57750038]
[1633124425560,77.0853,161.74,161.68,0.3180532]
[1633124430465,77.0853,161.74,161.62,3.56248416]
[1633124430665,77.0853,161.74,161.63,3.56174198]
[1633124430865,77.0853,161.74,161.68,0.3180532]
[1633124435768,77.0853,161.74,161.68,0.1590266]
[1633124435969,77.0853,161.74,161.62,3.55288894]
[1633124436170,77.0853,161.74,161.71,0.3180532]
[1633124441074,77.0853,161.74,161.71,0.1590266]
[1633124441276,77.0853,161.74,161.62,3.56604852]
[1633124441474,77.0853,161.74,161.72,0.3180532]
[1633124441875,77.0853,161.74,161.72,5.32e-05]
[1633124442476,77.0853,161.74,161.62,3.56604852]
[1633124461415,77.0853,161.74,161.63,3.54428672]
[1633124462917,77.0853,161.74,161.64,3.52289983]
[1633124466421,77.0853,161.74,161.63,3.52228359]
[1633124466822,77.0853,161.74,161.64,3.54534801]
[1633124467425,77.0853,161.74,161.63,3.54450202]
[1633124468425,510.71090688,161.75,161.63,3.54450202]
[1633124468629,510.71090688,161.75,161.64,3.54412274]
[1633124471029,510.71090688,161.75,161.65,3.53331243]
[1633124471229,510.71090688,161.75,161.66,3.52918789]
[1633124471630,510.71090688,161.75,161.65,3.53198449]
[1633124471829,510.71090688,161.75,161.66,3.53230425]
[1633124472230,510.71090688,161.75,161.65,3.53302269]
[1633124472628,510.71090688,161.75,161.66,3.5305902]
[1633124473430,510.71090688,161.75,161.65,3.53024817]
[1633124475435,26.35293568,161.81,161.66,3.52434484]
[1633124475632,26.35293568,161.81,161.65,3.53045723]
[1633124475831,26.35293568,161.84,161.65,3.53045723]
[1633124478635,372.35706675,161.85,161.65,3.53045723]
[1633124480139,372.35706675,161.85,161.66,3.52152522]
[1633124481139,372.33618675,161.85,161.67,0.02088]
[1633124481341,372.33618675,161.85,161.67,3.52219983]
[1633124481537,372.33618675,161.85,161.68,0.02088]
[1633124482138,372.33618675,161.85,161.68,3.51480505]
[1633124482339,372.33618675,161.85,161.69,0.02088]
[1633124483538,372.33618675,161.85,161.68,0.02088]
[1633124484639,372.33618675,161.85,161.68,3.50550766]
[1633124484841,372.33618675,161.85,161.69,0.02088]
[1633124489742,372.33618675,161.85,161.69,3.51805513]
[1633124489945,372.33618675,161.85,161.69,0.02088]
[1633124491244,372.33618675,161.85,161.69,3.51120077]
[1633124491443,372.33618675,161.85,161.69,0.02088]
[1633124491643,372.33618675,161.85,161.69,3.50960624]
[1633124493145,372.33618675,161.85,161.69,0.02088]
[1633124493546,372.33618675,161.85,161.69,3.50480187]
[1633124493946,372.33618675,161.85,161.7,3.4819958]
[1633124494545,372.33618675,161.85,161.8,75.0]
[1633124507357,372.33618675,161.85,161.8,74.5]
[1633124510958,337.25663675,161.85,161.8,74.5]
[1633124525872,360.43851899,161.88,161.8,74.5]
[1633124534480,372.82893699,161.9,161.8,74.5]
[1633124539483,23.42960886,161.96,161.8,74.5]
[1633124545990,75.0675,161.95,161.8,74.5]
[1633124548392,75.0675,161.95,161.81,7.16649517]
[1633124548595,75.0675,161.95,161.8,74.5]
[1633124549393,75.0675,161.95,161.81,7.16666967]
[1633124555396,75.0675,161.95,161.81,10.54682076]
[1633124558799,75.0675,161.95,161.82,3.36513076]
[1633124559799,75.0675,161.95,161.81,10.53699344]
[1633124562602,16.029,161.95,161.81,10.53699344]
[1633124562801,16.029,161.95,161.81,3.37032377]
[1633124564623,16.029,161.95,161.82,3.36932789]
[1633124565024,472.88730648,161.98,161.82,3.36932789]
[1633124568028,472.88730648,161.98,161.83,3.36445134]
[1633124568229,472.88730648,161.98,161.82,3.36498295]
[1633124568832,472.88730648,161.98,161.83,3.36220401]
[1633124570430,472.88730648,161.98,161.82,3.36741727]
[1633124573633,472.88730648,161.98,161.83,3.35981072]
[1633124573833,472.88730648,161.98,161.84,3.34179447]
[1633124574634,472.88730648,161.98,161.83,3.3555727]
[1633124581337,472.90818648,161.98,161.83,3.3555727]
[1633124583538,472.88730648,161.98,161.83,3.3555727]
[1633124584337,472.88730648,161.98,161.84,3.37687819]
[1633124584540,472.88730648,161.98,161.81,0.04295]
[1633124584541,472.88730648,161.98,161.83,3.38022298]
[1633124584738,472.88730648,161.98,161.84,3.37402946]
[1633124585739,472.88730648,161.98,161.83,3.38007159]
[1633124586839,472.88730648,161.98,161.82,3.39067316]
[1633124587042,489.75030648,161.98,161.82,3.39067316]
[1633124587640,489.75030648,161.98,161.84,3.36290804]
[1633124590042,489.75030648,161.98,161.83,3.37444858]
[1633124590645,472.88730648,161.98,161.83,3.37444858]
[1633124590842,472.88730648,161.98,161.84,3.3729077]
[1633124592445,472.88730648,161.98,161.85,3.38364459]
[1633124593445,472.88730648,161.98,161.84,3.39471611]
[1633124594445,472.88730648,161.98,161.83,3.39706454]
[1633124595348,472.88730648,161.98,161.84,3.40405758]
[1633124597147,472.88730648,161.98,161.85,3.39129414]
[1633124598149,472.88730648,161.98,161.86,3.38624596]
[1633124599048,472.88730648,161.98,161.85,3.38675716]
[1633124600950,78.2423,162.0,161.86,3.39580407]
[1633124607558,78.2423,162.0,161.87,3.42545967]
[1633124609660,78.2423,162.0,161.86,3.4275483]
[1633124615063,505.74673396,161.96,161.86,3.4275483]
[1633124616064,505.74673396,161.96,161.85,3.43206805]
[1633124617566,505.74673396,161.96,161.87,3.41485186]
[1633124621467,505.74673396,161.96,161.88,3.42155707]
[1633124622570,505.74673396,161.96,161.87,3.42504409]
[1633124627178,72.6939,161.95,161.87,3.42504409]
[1633124638680,72.6939,161.95,161.86,3.48491998]
[1633124641883,72.6939,161.95,161.82,5.22864298]
[1633124641884,72.6939,161.95,161.85,3.48743763]
[1633124644387,72.6939,161.95,161.86,3.48502378]
[1633124644588,72.6939,161.95,161.86,10.65012022]
[1633124644789,72.6939,161.95,161.86,3.48502378]
[1633124645490,72.6939,161.95,161.85,3.48571475]
[1633124646187,72.6939,161.95,161.86,3.50082489]
[1633124648591,72.6939,161.95,161.85,3.51631316]
[1633124648790,72.6939,161.95,161.86,3.51571635]
[1633124648993,72.6939,161.95,161.85,3.51634189]
[1633124649191,72.6939,161.95,161.86,3.51352183]
[1633124649592,72.6939,161.95,161.85,3.51572783]
[1633124650792,72.6939,161.95,161.86,3.52155915]
[1633124652393,72.6939,161.95,161.85,3.52710451]
[1633124652594,72.6939,161.95,161.82,5.22864298]
[1633124652595,72.6939,161.95,161.86,3.52175615]
[1633124661599,72.6939,161.95,161.85,3.5576776]
[1633124663406,72.6939,161.95,161.84,3.5743197]
[1633124664003,72.6939,161.95,161.85,3.57322911]
[1633124664206,72.6939,161.95,161.84,3.58238608]
[1633124664405,72.6939,161.95,161.81,0.04295]
[1633124664608,24.87244837,161.94,161.81,0.04295]
[1633124665505,0.02088,161.93,161.81,0.04295]
[1633124665704,15.4539,161.88,161.81,0.04295]
[1633124667006,40.68745948,161.88,161.81,0.04295]
[1633124668008,79.8078,161.87,161.81,0.04295]
[1633124668411,482.15370346,161.83,161.81,0.04295]
[1633124668808,497.61250346,161.83,161.81,0.04295]
[1633124669007,497.61250346,161.83,161.67,3.5815234]
[1633124669208,516.93950346,161.83,161.66,3.58176374]
[1633124669810,516.93950346,161.83,161.65,3.60269749]
[1633124670008,516.93950346,161.83,161.65,3.10269749]
[1633124670408,516.93950346,161.83,161.65,3.08181749]
[1633124670609,516.96038346,161.83,161.62,12.5447866]
[1633124670809,542.19394294,161.83,161.62,12.5447866]
[1633124671210,542.19394294,161.83,161.62,7.17208425]
[1633124672711,542.19394294,161.83,161.59,0.02088]
[1633124672911,542.19394294,161.83,161.57,7.1947908]
[1633124673113,542.19394294,161.83,161.58,0.02088]
[1633124673517,0.02088,161.82,161.57,7.1739108]
[1633124673914,25.73911503,161.81,161.57,7.1739108]
[1633124674113,0.02088,161.8,161.56,0.02088]
[1633124674315,0.02088,161.8,161.54,7.19644079]
[1633124674316,85.36288,161.8,161.54,7.19644079]
[1633124674514,85.36288,161.8,161.53,24.55505518]
[1633124674515,26.05066371,161.79,161.55,0.02088]
[1633124674713,76.40028,161.78,161.49,7.19721982]
[1633124674916,0.02088,161.77,161.5,0.02088]
[1633124675114,26.55621927,161.77,161.49,0.02088]
[1633124675315,0.02088,161.76,161.49,0.02088]
[1633124675517,33.54001927,161.76,161.49,0.02088]
[1633124675714,26.55621927,161.75,161.48,7.19713597]
[1633124675914,15.477,161.64,161.48,0.02088]
[1633124676114,15.477,161.64,161.43,0.02088]
[1633124676314,43.31233927,161.64,161.42,0.02088]
[1633124676513,43.33321927,161.64,161.4,0.02088]
[1633124676913,76.52,161.63,161.37,7.20216228]
[1633124677113,15.4838,161.58,161.38,0.02088]
[1633124677914,15.4838,161.58,161.42,347.74774662]
[1633124678615,15.4838,161.58,161.4,0.02088]
[1633124678815,15.4838,161.58,161.37,0.02088]
[1633124680017,15.4838,161.58,161.37,72.42918]
[1633124680216,15.4838,161.58,161.38,0.02088]
[1633124680616,15.4838,161.58,161.36,117.2]
[1633124680617,15.4838,161.58,161.37,0.02088]
[1633124681216,43.31913927,161.58,161.37,0.02088]
[1633124682919,43.31913927,161.58,161.34,72.37478]
[1633124683121,43.31913927,161.58,161.35,77.38858]
[1633124683319,411.85908852,161.52,161.36,0.02088]
[1633124684537,411.85908852,161.52,161.35,77.3677]
[1633124687321,411.85908852,161.52,161.36,0.02088]
[1633124688724,411.85908852,161.52,161.33,0.02088]
[1633124690846,411.85908852,161.52,161.33,7.20406713]
[1633124691146,411.85908852,161.52,161.33,0.02088]
[1633124691546,411.85908852,161.52,161.33,7.20419692]
[1633124693648,411.85908852,161.52,161.33,7.18331692]
[1633124695453,79.1024,161.51,161.33,18.70334849]
[1633124695854,79.1024,161.51,161.34,5.36896074]
[1633124696054,411.85908852,161.52,161.34,5.36896074]
[1633124696854,411.85908852,161.52,161.33,7.18331692]
[1633124697255,0.02088,161.51,161.33,7.18331692]
[1633124697456,15.4921,161.48,161.33,7.18331692]
[1633124698656,15.4921,161.48,161.33,23.58069833]
[1633124699654,15.4921,161.48,161.34,5.37476807]
[1633124700657,15.4921,161.48,161.35,5.37643735]
[1633124701256,424.37735263,161.41,161.35,5.37643735]
[1633124702257,424.37735263,161.41,161.33,5.3768188]
[1633124702658,424.37735263,161.41,161.32,5.37938694]
[1633124703657,424.37735263,161.41,161.34,5.38058406]
[1633124704857,424.37735263,161.41,161.36,5.3817485]
[1633124705859,424.37735263,161.41,161.37,5.38336703]
[1633124710165,424.37735263,161.41,161.35,5.38359026]
[1633124710366,424.37735263,161.41,161.38,7.18663296]
[1633124710567,424.37735263,161.41,161.35,5.38359026]
[1633124711169,15.5007,161.4,161.34,5.38394766]
[1633124711767,15.5007,161.4,161.31,5.38430208]
[1633124711968,74.0057,161.39,161.31,5.38430208]
[1633124712371,15.5049,161.35,161.29,5.38494332]
[1633124713469,15.5049,161.35,161.21,7.18698036]
[1633124713470,15.5049,161.35,161.27,5.38464925]
[1633124714471,15.5049,161.35,161.25,5.38404453]
[1633124715272,358.69573895,161.28,161.25,5.38404453]
[1633124715472,358.69573895,161.28,161.24,5.38358401]
[1633124716572,358.69573895,161.28,161.22,5.38368398]
[1633124718579,358.69573895,161.28,161.21,7.19015512]
[1633124721179,358.69573895,161.28,161.2,2.0]
[1633124721978,73.6503,161.27,161.2,2.0]
[1633124725679,15.5132,161.26,161.2,2.0]
[1633124727382,15.5132,161.26,161.11,0.02088]
[1633124727581,22.497,161.26,161.05,0.02088]
[1633124727781,22.497,161.26,161.02,0.02088]
[1633124728581,22.497,161.26,161.02,7.02173945]
[1633124728782,53.88940736,161.26,161.03,0.02088]
[1633124729184,53.88940736,161.26,161.02,0.02088]
[1633124729582,53.88940736,161.26,161.02,7.02130625]
[1633124729783,53.88940736,161.26,161.03,0.02088]
[1633124730385,476.54180595,161.19,161.03,0.02088]
[1633124731182,476.54180595,161.19,161.02,366.70589414]
[1633124731582,507.93421331,161.19,161.02,366.70589414]
[1633124731786,73.0445,161.18,161.02,366.70589414]
[1633124732384,15.5231,161.17,161.02,366.70589414]
[1633124735986,15.5231,161.17,161.03,79.9082]
[1633124736387,15.5231,161.17,161.02,366.70589414]
[1633124736586,15.5231,161.17,161.02,0.02088]
[1633124736788,15.5231,161.17,161.0,0.02088]
[1633124737089,46.91550736,161.17,161.0,0.02088]
[1633124737292,46.91550736,161.17,160.97,0.02088]
[1633124738087,46.91550736,161.17,160.97,7.01788295]
[1633124738287,46.91550736,161.17,160.98,0.02088]
[1633124738488,46.91550736,161.17,160.98,22.65188]
[1633124738690,46.91550736,161.17,160.99,7.01858312]
[1633124738889,46.91550736,161.17,161.0,0.02088]
[1633124742590,46.91550736,161.17,160.97,7.02285252]
[1633124745292,46.91550736,161.17,160.98,76.7948]
[1633124745492,46.91550736,161.17,160.99,7.00309229]
[1633124746293,46.91550736,161.17,160.98,7.00284975]
[1633124746494,46.91550736,161.17,160.98,17.59831523]
[1633124746693,46.91550736,161.17,160.98,5.38774859]
[1633124748294,388.09925744,161.1,160.98,5.38774859]
[1633124748900,388.09925744,161.1,160.99,5.38922644]
[1633124749095,388.09925744,161.1,160.99,26.04222644]
[1633124749296,388.09925744,161.1,161.0,17.6067561]
[1633124749897,388.09925744,161.1,161.0,22.9967349]
[1633124750497,388.09925744,161.1,161.0,7.00670664]
[1633124751099,388.09925744,161.1,160.98,5.39075103]
[1633124752700,388.09925744,161.1,161.0,5.39192268]
[1633124753300,373.05946125,161.15,161.0,5.39192268]
[1633124753701,373.05946125,161.15,161.01,5.39274604]
[1633124754900,373.05946125,161.15,161.02,5.39367349]
[1633124756003,373.05946125,161.15,161.03,5.3952418]
[1633124757002,373.05946125,161.15,161.05,5.39671139]
[1633124757402,373.05946125,161.15,161.02,5.39747304]
[1633124758603,373.05946125,161.15,161.03,5.39743473]
[1633124759607,373.05946125,161.15,161.05,5.3973998]
[1633124760008,373.05946125,161.15,161.09,3.59821291]
[1633124760811,373.05946125,161.15,161.1,3.59819912]
[1633124761215,373.05946125,161.15,161.11,3.59801722]
[1633124761413,373.05946125,161.15,161.1,3.59814131]
[1633124761612,373.05946125,161.15,161.11,3.5979918]
[1633124762014,373.05946125,161.15,161.12,3.59779011]
[1633124762412,373.05946125,161.15,161.11,3.59779645]
[1633124762612,373.05946125,161.15,161.08,12.41310221]
[1633124762814,373.05946125,161.15,161.12,5.39542212]
[1633124763022,11.745095,161.2,161.12,5.39542212]
[1633124763214,11.745095,161.2,161.17,3.59653794]
[1633124763817,11.745095,161.2,161.18,3.59445047]
[1633124764214,11.745095,161.2,161.18,2.97395047]
[1633124765215,11.745095,161.2,161.18,10.16705192]
[1633124765616,11.745095,161.2,161.18,7.19310145]
[1633124766815,1.027195,161.2,161.18,7.19310145]
[1633124767016,15.5163,161.34,161.18,7.19310145]
[1633124767220,0.02088,161.38,161.18,7.19310145]
[1633124767417,0.02088,161.39,161.18,93.49575312]
[1633124767616,420.21504461,161.34,161.19,7.19088078]
[1633124768817,420.21504461,161.34,161.18,24.55265167]
[1633124770217,420.21504461,161.34,161.19,61.75]
[1633124770417,420.21504461,161.34,161.2,0.02088]
[1633124770617,420.21504461,161.34,161.2,25.9457539]
[1633124770822,420.21504461,161.34,161.2,25.9248739]
[1633124775522,420.21504461,161.34,161.2,111.3948739]
[1633124775724,420.21504461,161.34,161.21,0.02088]
[1633124775926,420.21504461,161.34,161.21,25.9457539]
[1633124776123,420.21504461,161.34,161.22,25.9248739]
[1633124777226,461.84215458,161.4,161.22,25.9248739]
[1633124779325,461.84215458,161.4,161.26,2.46359201]
[1633124779526,461.84215458,161.4,161.26,19.793]
[1633124780931,461.84215458,161.4,161.22,87.6748739]
[1633124781527,461.84215458,161.4,161.23,25.9248739]
[1633124781729,461.84215458,161.4,161.23,45.7148739]
[1633124782128,461.84215458,161.4,161.23,107.4648739]
[1633124782830,461.84215458,161.4,161.23,45.7148739]
[1633124784532,461.84215458,161.4,161.23,25.9248739]
[1633124786232,0.02088,161.39,161.23,25.9248739]
[1633124789239,0.02088,161.39,161.24,7.18940057]
[1633124791557,461.84215458,161.4,161.24,7.18940057]
[1633124792656,71.262985,161.4,161.24,7.18940057]
[1633124793059,0.02088,161.39,161.24,7.18940057]
[1633124793862,77.80138,161.39,161.24,7.18940057]
[1633124794064,0.02088,161.38,161.24,7.18940057]
[1633124794260,0.02088,161.38,161.14,0.02088]
[1633124794261,15.52158,161.38,161.18,31.31340357]
[1633124794460,15.52158,161.38,161.19,7.19127651]
[1633124794667,15.52158,161.38,161.19,44.05972282]
[1633124794861,15.52158,161.38,161.2,93.93767558]
[1633124795061,15.52158,161.38,161.21,7.19105474]